fUSD/lending_fUSD_20240428
["ID","MTS","AMOUNT","RATE_DAILY","PERIOD"]
[324793445,1714335074733,-2210.179829,0.00011506,2]
[324793446,1714335074743,-500.0,0.00011506,2]
[324793447,1714335074753,-936.743565,0.00011506,2]
[324793448,1714335074763,-500.0,0.00011506,2]
[324793449,1714335074774,-500.0,0.00011506,2]
[324793450,1714335074783,-2559.64,0.00011506,2]
[324793451,1714335074793,-151.0,0.00011506,2]
[324793452,1714335074802,-500.0,0.00011506,2]
[324793453,1714335074812,-500.0,0.00011506,2]
[324793454,1714335074821,-500.0,0.00011506,2]
[324793455,1714335074831,-2210.179829,0.00011506,2]
[324793456,1714335074841,-222.8,0.00011506,2]
[324793457,1714335074851,-500.0,0.00011506,2]
[324793458,1714335074861,-500.0,0.00011506,2]
[324793459,1714335074871,-500.0,0.00011506,2]
[324793460,1714335074880,-406.0,0.0001154,2]
[324793461,1714335074889,-2705.047166,0.00011614,2]
[324793462,1714335074899,-571.874419,0.00011614,2]
[324793463,1714335074908,-2705.047166,0.00011614,2]
[324793464,1714335074917,-571.874419,0.00011614,2]
[324793465,1714335074927,-151.0,0.00011614,2]
[324793466,1714335074936,-151.0,0.00011614,2]
[324793467,1714335074946,-151.0,0.00011614,2]
[324793468,1714335074955,-290.756738,0.00011614,2]
[324793469,1714335074965,-290.756738,0.00011614,2]
[324793470,1714335074974,-217.372388,0.00011614,2]
[324793471,1714335074983,-151.0,0.00011614,2]
[324793472,1714335074992,-217.372388,0.00011614,2]
[324793473,1714335075001,-151.0,0.00011614,2]
[324793474,1714335075010,-439.856673,0.00011614,2]
[324793475,1714335075019,-439.856673,0.00011614,2]
[324793476,1714335075028,-4641.66724063,0.00011614,2]
[324793477,1714335075038,-173.12,0.0001166,2]
[324793478,1714335075047,-4641.66724063,0.00011775,2]
[324793479,1714335075056,-500.0,0.00011778,2]
[324793480,1714335075065,-2934.53,0.00011779,2]
[324793481,1714335075075,-500.0,0.00011779,2]
[324793482,1714335075084,-1163.14,0.00011779,2]
[324793483,1714335075094,-500.0,0.0001178,2]
[324793484,1714335075103,-500.0,0.0001178,2]
[324793485,1714335075115,-500.0,0.0001178,2]
[324793486,1714335075125,-500.0,0.0001178,2]
[324793487,1714335075134,-500.0,0.0001178,2]
[324793488,1714335075143,-500.0,0.0001178,2]
[324793489,1714335075155,-500.0,0.0001178,2]
[324793490,1714335075170,-500.0,0.0001178,2]
[324793491,1714335075179,-500.0,0.0001178,2]
[324793492,1714335075188,-507.57377318,0.0001178,2]
[324793493,1714335075198,-500.0,0.0001178,2]
[324793494,1714335075207,-500.0,0.0001178,2]
[324793495,1714335075217,-500.0,0.0001178,2]
[324793496,1714335075227,-500.0,0.0001178,2]
[324793497,1714335075236,-266.93,0.0001178,2]
[324793498,1714335075246,-500.0,0.0001178,2]
[324793499,1714335075255,-500.0,0.0001178,2]
[324793500,1714335075264,-500.0,0.0001178,2]
[324793501,1714335075274,-500.0,0.0001178,2]
[324793502,1714335075283,-500.0,0.0001178,2]
[324793503,1714335075292,-500.0,0.0001178,2]
[324793504,1714335075302,-500.0,0.0001178,2]
[324793505,1714335075312,-305.9,0.0001178,2]
[324793506,1714335075321,-178.93,0.0001178,2]
[324793507,1714335075330,-596.77,0.0001178,2]
[324793508,1714335075340,-500.0,0.0001178,2]
[324793509,1714335075349,-500.0,0.0001178,2]
[324793510,1714335075527,-500.0,0.0001178,2]
[324793511,1714335075536,-195.86,0.0001178,2]
[324793512,1714335075545,-608.76199969,0.0001178,2]
[324793513,1714335075555,-500.0,0.0001178,2]
[324793514,1714335075565,-500.0,0.0001178,2]
[324793515,1714335075574,-500.0,0.0001178,2]
[324793516,1714335075583,-500.0,0.0001178,2]
[324793517,1714335075593,-500.0,0.0001178,2]
[324793518,1714335075602,-500.0,0.0001178,2]
[324793519,1714335075611,-500.0,0.0001178,2]
[324793520,1714335075620,-500.0,0.0001178,2]
[324793521,1714335075629,-631.6,0.0001178,2]
[324793522,1714335075638,-500.0,0.0001178,2]
[324793523,1714335075647,-500.0,0.0001178,2]
[324793524,1714335075656,-500.0,0.0001178,2]
[324793525,1714335075665,-500.0,0.0001178,2]
[324793526,1714335075676,-500.0,0.0001178,2]
[324793527,1714335075685,-500.0,0.0001178,2]
[324793528,1714335075694,-500.0,0.0001178,2]
[324793529,1714335075703,-500.0,0.0001178,2]
[324793530,1714335075714,-500.0,0.0001178,2]
[324793531,1714335075723,-405.49,0.0001178,2]
[324793532,1714335075732,-500.0,0.0001178,2]
[324793533,1714335075741,-467.13,0.0001178,2]
[324793534,1714335075751,-500.0,0.0001178,2]
[324793535,1714335075760,-500.0,0.0001178,2]
[324793536,1714335075769,-500.0,0.0001178,2]
[324793537,1714335075778,-500.0,0.0001178,2]
[324793538,1714335075787,-581.74,0.0001178,2]
[324793539,1714335075797,-500.0,0.0001178,2]
[324793540,1714335075806,-500.0,0.0001178,2]
[324793541,1714335075815,-500.0,0.0001178,2]
[324793542,1714335075825,-500.0,0.0001178,2]
[324793543,1714335075834,-500.0,0.0001178,2]
[324793544,1714335075843,-500.0,0.0001178,2]
[324793545,1714335075855,-500.0,0.0001178,2]
[324793546,1714335075864,-500.0,0.0001178,2]
[324793547,1714335075873,-500.0,0.0001178,2]
[324793548,1714335075882,-567.77306296,0.0001178,2]
[324793549,1714335075892,-500.0,0.0001178,2]
[324793550,1714335075901,-500.0,0.0001178,2]
[324793551,1714335075911,-500.0,0.0001178,2]
[324793552,1714335075921,-712.87,0.0001178,2]
[324793553,1714335075933,-500.0,0.0001178,2]
[324793554,1714335075943,-500.0,0.0001178,2]
[324793555,1714335075952,-500.0,0.0001178,2]
[324793556,1714335075963,-500.0,0.0001178,2]
[324793557,1714335075972,-500.0,0.0001178,2]
[324793558,1714335075982,-500.0,0.0001178,2]
[324793559,1714335075992,-528.85,0.0001178,2]
[324793560,1714335076003,-500.0,0.0001178,2]
[324793561,1714335076012,-500.0,0.0001178,2]
[324793562,1714335076021,-500.0,0.0001178,2]
[324793563,1714335076031,-500.0,0.0001178,2]
[324793564,1714335076040,-500.0,0.0001178,2]
[324793565,1714335076049,-500.0,0.0001178,2]
[324793566,1714335076058,-500.0,0.0001178,2]
[324793567,1714335076068,-600.29,0.0001178,2]
[324793568,1714335076077,-528.41,0.0001178,2]
[324793569,1714335076087,-500.0,0.0001178,2]
[324793570,1714335076097,-500.0,0.0001178,2]
[324793571,1714335076106,-500.0,0.0001178,2]
[324793572,1714335076116,-500.0,0.0001178,2]
[324793573,1714335076125,-500.0,0.0001178,2]
[324793574,1714335076134,-521.76,0.0001178,2]
[324793575,1714335076144,-500.0,0.0001178,2]
[324793576,1714335076154,-582.06,0.0001178,2]
[324793577,1714335076163,-500.0,0.0001178,2]
[324793578,1714335076173,-552.84,0.0001178,2]
[324793579,1714335076182,-500.0,0.0001178,2]
[324793580,1714335076191,-500.0,0.0001178,2]
[324793581,1714335076201,-500.0,0.0001178,2]
[324793582,1714335076210,-382.20951019,0.0001178,2]
[324793583,1714335076220,-500.0,0.0001178,2]
[324793584,1714335076230,-553.62,0.0001178,2]
[324793585,1714335076239,-500.0,0.0001178,2]
[324793586,1714335076249,-500.0,0.0001178,2]
[324793587,1714335076258,-558.84,0.0001178,2]
[324793588,1714335076268,-718.95,0.0001178,2]
[324793589,1714335076277,-500.0,0.0001178,2]
[324793590,1714335076286,-548.37,0.0001178,2]
[324793591,1714335076296,-522.08,0.0001178,2]
[324793592,1714335076305,-500.0,0.0001178,2]
[324793593,1714335076314,-500.0,0.0001178,2]
[324793594,1714335076323,-500.0,0.0001178,2]
[324793595,1714335076333,-500.0,0.0001178,2]
[324793596,1714335076342,-500.0,0.0001178,2]
[324793597,1714335076352,-500.0,0.0001178,2]
[324793598,1714335076361,-569.87,0.0001178,2]
[324793599,1714335076371,-535.18,0.0001178,2]
[324793600,1714335076385,-500.0,0.0001178,2]
[324793601,1714335076394,-604.05,0.0001178,2]
[324793602,1714335076403,-504.31666459,0.0001178,2]
[324793603,1714335076413,-500.0,0.0001178,2]
[324793604,1714335076423,-500.0,0.0001178,2]
[324793605,1714335076432,-578.55,0.0001178,2]
[324793606,1714335076442,-659.69,0.0001178,2]
[324793607,1714335076451,-557.65050819,0.0001178,2]
[324793608,1714335076463,-500.0,0.0001178,2]
[324793609,1714335076472,-500.0,0.0001178,2]
[324793610,1714335076481,-537.27,0.0001178,2]
[324793611,1714335076491,-500.0,0.0001178,2]
[324793612,1714335076500,-500.0,0.0001178,2]
[324793613,1714335076510,-522.34,0.0001178,2]
[324793614,1714335076519,-521.91338485,0.0001178,2]
[324793615,1714335076528,-500.0,0.0001178,2]
[324793616,1714335076537,-543.61,0.0001178,2]
[324793617,1714335076547,-500.0,0.0001178,2]
[324793618,1714335076557,-507.29,0.0001178,2]
[324793619,1714335076566,-500.0,0.0001178,2]
[324793620,1714335076575,-1120.45,0.0001178,2]
[324793621,1714335076585,-500.0,0.0001178,2]
[324793622,1714335076595,-756.08,0.0001178,2]
[324793623,1714335076604,-500.0,0.0001178,2]
[324793624,1714335076614,-1025.95,0.0001178,2]
[324793625,1714335076623,-500.0,0.0001178,2]
[324793626,1714335076633,-500.0,0.0001178,2]
[324793627,1714335076643,-500.0,0.0001178,2]
[324793628,1714335076652,-500.0,0.0001178,2]
[324793629,1714335076662,-689.007913,0.0001178,2]
[324793630,1714335076671,-500.0,0.0001178,2]
[324793631,1714335076680,-151.0,0.0001178,2]
[324793632,1714335076690,-500.0,0.0001178,2]
[324793633,1714335076700,-500.0,0.0001178,2]
[324793634,1714335076710,-500.0,0.0001178,2]
[324793635,1714335076719,-500.0,0.0001178,2]
[324793636,1714335076728,-500.0,0.0001178,2]
[324793637,1714335076737,-500.0,0.0001178,2]
[324793638,1714335076746,-500.0,0.0001178,2]
[324793639,1714335076756,-801.118966,0.0001178,2]
[324793640,1714335076765,-500.0,0.0001178,2]
[324793641,1714335076774,-151.0,0.0001178,2]
[324793642,1714335076784,-500.0,0.0001178,2]
[324793643,1714335076793,-801.118966,0.0001178,2]
[324793644,1714335076802,-500.0,0.0001178,2]
[324793645,1714335076812,-526.46,0.0001178,2]
[324793646,1714335076821,-500.0,0.0001178,2]
[324793647,1714335076830,-519.93440877,0.0001178,2]
[324793648,1714335076840,-500.0,0.0001178,2]
[324793649,1714335076849,-500.0,0.0001178,2]
[324793650,1714335076858,-500.0,0.0001178,2]
[324793651,1714335076868,-500.0,0.0001178,2]
[324793652,1714335076877,-500.0,0.0001178,2]
[324793653,1714335076887,-508.08,0.0001178,2]
[324793654,1714335076896,-500.0,0.0001178,2]
[324793655,1714335076905,-500.0,0.0001178,2]
[324793656,1714335076915,-552.12,0.0001178,2]
[324793657,1714335076924,-500.0,0.0001178,2]
[324793658,1714335076933,-615.27,0.0001178,2]
[324793659,1714335076943,-500.0,0.0001178,2]
[324793660,1714335076952,-500.0,0.0001178,2]
[324793661,1714335076963,-151.0,0.0001178,2]
[324793662,1714335076973,-500.0,0.0001178,2]
[324793663,1714335076982,-500.0,0.0001178,2]
[324793664,1714335076991,-506.50751904,0.0001178,2]
[324793665,1714335077001,-500.0,0.0001178,2]
[324793666,1714335077010,-151.0,0.0001178,2]
[324793667,1714335077020,-500.0,0.0001178,2]
[324793668,1714335077029,-500.0,0.0001178,2]
[324793669,1714335077039,-500.0,0.0001178,2]
[324793670,1714335077048,-591.93,0.0001178,2]
[324793671,1714335077057,-163.31,0.0001178,2]
[324793672,1714335077068,-500.0,0.0001178,2]
[324793673,1714335077078,-500.0,0.0001178,2]
[324793674,1714335077087,-651.59,0.0001178,2]
[324793675,1714335077107,-500.0,0.0001178,2]
[324793676,1714335077128,-643.83,0.0001178,2]
[324793677,1714335077152,-500.0,0.0001178,2]
[324793678,1714335077175,-1022.25,0.0001178,2]
[324793679,1714335077197,-926.43,0.0001178,2]
[324793680,1714335077220,-500.0,0.0001178,2]
[324793681,1714335077243,-500.0,0.0001178,2]
[324793682,1714335077265,-884.7,0.0001178,2]
[324793683,1714335077289,-500.0,0.0001178,2]
[324793684,1714335077309,-500.0,0.0001178,2]
[324793685,1714335077319,-500.0,0.0001178,2]
[324793686,1714335077328,-562.5,0.0001178,2]
[324793687,1714335077337,-1276.87,0.0001178,2]
[324793688,1714335077347,-500.0,0.0001178,2]
[324793689,1714335077356,-547.13,0.0001178,2]
[324793690,1714335077365,-210.7,0.0001178,2]
[324793691,1714335077375,-500.0,0.0001178,2]
[324793692,1714335077389,-500.0,0.0001178,2]
[324793693,1714335077399,-500.0,0.0001178,2]
[324793694,1714335077409,-518.76,0.0001178,2]
[324793695,1714335077418,-1269.32,0.0001178,2]
[324793696,1714335077429,-500.0,0.0001178,2]
[324793697,1714335077439,-500.0,0.0001178,2]
[324793698,1714335077448,-577.52,0.0001178,2]
[324793699,1714335077457,-500.0,0.0001178,2]
[324793700,1714335077467,-151.39450316,0.0001178,2]
[324793701,1714335077476,-500.0,0.0001178,2]
[324793702,1714335077485,-500.0,0.0001178,2]
[324793703,1714335077495,-500.0,0.0001178,2]
[324793704,1714335077505,-562.5,0.0001178,2]
[324793705,1714335077514,-500.0,0.0001178,2]
[324793706,1714335077523,-500.0,0.0001178,2]
[324793707,1714335077532,-989.07,0.0001178,2]
[324793708,1714335077541,-771.63,0.0001178,2]
[324793709,1714335077552,-500.0,0.0001178,2]
[324793710,1714335077561,-580.16,0.0001178,2]
[324793711,1714335077570,-500.0,0.0001178,2]
[324793712,1714335077581,-500.0,0.0001178,2]
[324793713,1714335077590,-500.0,0.0001178,2]
[324793714,1714335077599,-500.0,0.0001178,2]
[324793715,1714335077609,-500.0,0.0001178,2]
[324793716,1714335077619,-592.44,0.0001178,2]
[324793717,1714335077628,-948.26,0.0001178,2]
[324793718,1714335077637,-500.0,0.0001178,2]
[324793719,1714335077647,-500.0,0.0001178,2]
[324793720,1714335077656,-500.0,0.0001178,2]
[324793721,1714335077665,-500.0,0.0001178,2]
[324793722,1714335077674,-500.0,0.0001178,2]
[324793723,1714335077683,-500.0,0.0001178,2]
[324793724,1714335077692,-676.95,0.0001178,2]
[324793725,1714335077701,-500.0,0.0001178,2]
[324793726,1714335077710,-500.0,0.0001178,2]
[324793727,1714335077720,-500.0,0.0001178,2]
[324793728,1714335077729,-500.0,0.0001178,2]
[324793729,1714335077738,-500.0,0.0001178,2]
[324793730,1714335077748,-500.0,0.0001178,2]
[324793731,1714335077757,-500.0,0.0001178,2]
[324793732,1714335077766,-500.0,0.0001178,2]
[324793733,1714335077776,-500.0,0.0001178,2]
[324793734,1714335077785,-288.39,0.0001178,2]
[324793735,1714335077795,-1354.65,0.0001178,2]
[324793736,1714335077804,-151.0,0.0001178,2]
[324793737,1714335077812,-931.21,0.0001178,2]
[324793738,1714335077821,-500.0,0.0001178,2]
[324793739,1714335077830,-515.83,0.0001178,2]
[324793740,1714335077839,-1483.98,0.0001178,2]
[324793741,1714335077848,-151.0,0.0001178,2]
[324793742,1714335077857,-500.0,0.0001178,2]
[324793743,1714335077866,-500.0,0.0001178,2]
[324793744,1714335077875,-500.0,0.0001178,2]
[324793745,1714335077885,-500.0,0.0001178,2]
[324793746,1714335077894,-500.0,0.0001178,2]
[324793747,1714335077903,-303.315159,0.0001178,2]
[324793748,1714335077912,-718.86,0.0001178,2]
[324793749,1714335077922,-521.169563,0.0001178,2]
[324793750,1714335077931,-500.0,0.0001178,2]
[324793751,1714335077940,-1102.68,0.0001178,2]
[324793752,1714335077949,-303.315159,0.0001178,2]
[324793753,1714335077958,-521.169563,0.0001178,2]
[324793754,1714335077967,-500.0,0.0001178,2]
[324793755,1714335077976,-227.75,0.0001178,2]
[324793756,1714335077985,-500.0,0.0001178,2]
[324793757,1714335077994,-500.0,0.0001178,2]
[324793758,1714335078003,-1722.960204,0.0001178,2]
[324793759,1714335078016,-500.0,0.0001178,2]
[324793760,1714335078026,-1722.960204,0.0001178,2]
[324793761,1714335078035,-170.52,0.0001178,2]
[324793762,1714335078044,-324.041959,0.0001178,2]
[324793763,1714335078053,-500.0,0.0001178,2]
[324793764,1714335078063,-1191.62,0.0001178,2]
[324793765,1714335078072,-500.0,0.0001178,2]
[324793766,1714335078081,-500.0,0.0001178,2]
[324793767,1714335078090,-434.62303381,0.0001178,2]
[324793768,1714335078099,-324.041959,0.0001178,2]
[324793769,1714335078108,-941.05,0.0001178,2]
[324793770,1714335078117,-500.0,0.0001178,2]
[324793771,1714335078126,-500.0,0.0001178,2]
[324793772,1714335078135,-500.0,0.0001178,2]
[324793773,1714335078145,-500.0,0.0001178,2]
[324793774,1714335078154,-470.92,0.0001178,2]
[324793775,1714335078163,-500.0,0.0001178,2]
[324793776,1714335078172,-500.0,0.0001178,2]
[324793777,1714335078181,-500.0,0.0001178,2]
[324793778,1714335078190,-500.0,0.0001178,2]
[324793779,1714335078200,-500.0,0.0001178,2]
[324793780,1714335078208,-1004.38,0.0001178,2]
[324793781,1714335078218,-500.0,0.0001178,2]
[324793782,1714335078227,-151.0,0.0001178,2]
[324793783,1714335078237,-500.0,0.0001178,2]
[324793784,1714335078246,-500.0,0.0001178,2]
[324793785,1714335078255,-500.0,0.0001178,2]
[324793786,1714335078265,-962.75,0.0001178,2]
[324793787,1714335078274,-520.83,0.0001178,2]
[324793788,1714335078283,-737.17,0.0001178,2]
[324793789,1714335078292,-500.0,0.0001178,2]
[324793790,1714335078302,-500.0,0.0001178,2]
[324793791,1714335078311,-500.0,0.0001178,2]
[324793792,1714335078321,-3080.143203,0.0001178,2]
[324793793,1714335078329,-500.0,0.0001178,2]
[324793794,1714335078339,-500.0,0.0001178,2]
[324793795,1714335078348,-500.0,0.0001178,2]
[324793796,1714335078357,-500.0,0.0001178,2]
[324793797,1714335078367,-151.0,0.0001178,2]
[324793798,1714335078378,-704.1,0.0001178,2]
[324793799,1714335078388,-500.0,0.0001178,2]
[324793800,1714335078398,-500.0,0.0001178,2]
[324793801,1714335078407,-3080.143203,0.0001178,2]
[324793802,1714335078417,-697.52,0.0001178,2]
[324793803,1714335078427,-151.0,0.0001178,2]
[324793804,1714335078436,-236.4,0.0001178,2]
[324793805,1714335078445,-500.0,0.0001178,2]
[324793806,1714335078455,-500.0,0.0001178,2]
[324793807,1714335078467,-500.0,0.0001178,2]
[324793808,1714335078476,-151.0,0.0001178,2]
[324793809,1714335078485,-500.0,0.0001178,2]
[324793810,1714335078651,-219.12272705,0.0001178,2]
[324793811,1714335078661,-503.13973535,0.0001178,2]
[324793812,1714335078670,-500.0,0.0001178,2]
[324793813,1714335078680,-892.91,0.0001178,2]
[324793814,1714335078689,-500.0,0.0001178,2]
[324793815,1714335078698,-500.0,0.0001178,2]
[324793816,1714335078707,-500.0,0.0001178,2]
[324793817,1714335078717,-500.0,0.0001178,2]
[324793818,1714335078727,-543.87,0.0001178,2]
[324793819,1714335078736,-500.0,0.0001178,2]
[324793820,1714335078745,-1931.86,0.0001178,2]
[324793821,1714335078754,-500.0,0.0001178,2]
[324793822,1714335078764,-2005.27,0.0001178,2]
[324793823,1714335078773,-500.0,0.0001178,2]
[324793824,1714335078783,-500.0,0.0001178,2]
[324793825,1714335078792,-500.0,0.0001178,2]
[324793826,1714335078801,-500.0,0.0001178,2]
[324793827,1714335078810,-500.0,0.0001178,2]
[324793828,1714335078819,-500.0,0.0001178,2]
[324793829,1714335078828,-500.0,0.0001178,2]
[324793830,1714335078838,-500.0,0.0001178,2]
[324793831,1714335078847,-500.0,0.0001178,2]
[324793832,1714335078856,-562.5,0.0001178,2]
[324793833,1714335078866,-520.83,0.0001178,2]
[324793834,1714335078875,-500.0,0.0001178,2]
[324793835,1714335078885,-500.0,0.0001178,2]
[324793836,1714335078894,-500.0,0.0001178,2]
[324793837,1714335078904,-500.0,0.0001178,2]
[324793838,1714335078913,-500.0,0.0001178,2]
[324793839,1714335078922,-1002.82,0.0001178,2]
[324793840,1714335078932,-500.0,0.0001178,2]
[324793841,1714335078942,-500.0,0.0001178,2]
[324793842,1714335078951,-500.0,0.0001178,2]
[324793843,1714335078960,-500.0,0.0001178,2]
[324793844,1714335078970,-541.36760375,0.0001178,2]
[324793845,1714335078979,-500.0,0.0001178,2]
[324793846,1714335078989,-607.23,0.0001178,2]
[324793847,1714335078998,-500.0,0.0001178,2]
[324793848,1714335079007,-500.0,0.0001178,2]
[324793849,1714335079016,-665.39,0.0001178,2]
[324793850,1714335079025,-500.0,0.0001178,2]
[324793851,1714335079034,-500.0,0.0001178,2]
[324793852,1714335079043,-500.0,0.0001178,2]
[324793853,1714335079052,-500.0,0.0001178,2]
[324793854,1714335079062,-500.0,0.0001178,2]
[324793855,1714335079072,-500.0,0.0001178,2]
[324793856,1714335079081,-500.0,0.0001178,2]
[324793857,1714335079091,-500.0,0.0001178,2]
[324793858,1714335079101,-500.0,0.0001178,2]
[324793859,1714335079110,-500.0,0.0001178,2]
[324793860,1714335079119,-708.13,0.0001178,2]
[324793861,1714335079128,-1615.1,0.0001178,2]
[324793862,1714335079138,-500.0,0.0001178,2]
[324793863,1714335079147,-153.84,0.0001178,2]
[324793864,1714335079157,-504.6,0.0001178,2]
[324793865,1714335079167,-500.0,0.0001178,2]
[324793866,1714335079177,-500.0,0.0001178,2]
[324793867,1714335079187,-3629.97,0.0001178,2]
[324793868,1714335079197,-1130.11,0.0001178,2]
[324793869,1714335079207,-582.99,0.0001178,2]
[324793870,1714335079218,-500.0,0.0001178,2]
[324793871,1714335079228,-354.87,0.0001178,2]
[324793872,1714335079238,-534.03,0.0001178,2]
[324793873,1714335079247,-500.0,0.0001178,2]
[324793874,1714335079257,-501.88556208,0.0001178,2]
[324793875,1714335079267,-5395.03,0.0001178,2]
[324793876,1714335079276,-500.0,0.0001178,2]
[324793877,1714335079285,-500.0,0.0001178,2]
[324793878,1714335079295,-500.0,0.0001178,2]
[324793879,1714335079304,-500.0,0.0001178,2]
[324793880,1714335079313,-500.0,0.0001178,2]
[324793881,1714335079322,-500.0,0.0001178,2]
[324793882,1714335079331,-564.8,0.0001178,2]
[324793883,1714335079341,-500.0,0.0001178,2]
[324793884,1714335079350,-966.12,0.0001178,2]
[324793885,1714335079359,-665.52,0.0001178,2]
[324793886,1714335079368,-500.0,0.0001178,2]
[324793887,1714335079377,-500.0,0.0001178,2]
[324793888,1714335079390,-500.0,0.0001178,2]
[324793889,1714335079399,-151.0,0.0001178,2]
[324793890,1714335079408,-500.0,0.0001178,2]
[324793891,1714335079419,-500.0,0.0001178,2]
[324793892,1714335079430,-500.0,0.0001178,2]
[324793893,1714335079439,-500.0,0.0001178,2]
[324793894,1714335079449,-608.01,0.0001178,2]
[324793895,1714335079459,-631.62291639,0.0001178,2]
[324793896,1714335079470,-500.0,0.0001178,2]
[324793897,1714335079479,-500.0,0.0001178,2]
[324793898,1714335079489,-500.0,0.0001178,2]
[324793899,1714335079498,-500.0,0.0001178,2]
[324793900,1714335079507,-500.0,0.0001178,2]
[324793901,1714335079518,-706.48,0.0001178,2]
[324793902,1714335079528,-602.98,0.0001178,2]
[324793903,1714335079537,-500.0,0.0001178,2]
[324793904,1714335079548,-724.080274,0.0001178,2]
[324793905,1714335079559,-500.0,0.0001178,2]
[324793906,1714335079569,-500.0,0.0001178,2]
[324793907,1714335079579,-500.0,0.0001178,2]
[324793908,1714335079589,-500.0,0.0001178,2]
[324793909,1714335079599,-724.080274,0.0001178,2]
[324793910,1714335079608,-500.0,0.0001178,2]
[324793911,1714335079617,-1824.84,0.0001178,2]
[324793912,1714335079627,-1415.41,0.0001178,2]
[324793913,1714335079637,-911.62,0.0001178,2]
[324793914,1714335079649,-500.0,0.0001178,2]
[324793915,1714335079660,-517.19486614,0.0001178,2]
[324793916,1714335079669,-500.0,0.0001178,2]
[324793917,1714335079679,-500.0,0.0001178,2]
[324793918,1714335079688,-500.0,0.0001178,2]
[324793919,1714335079698,-500.0,0.0001178,2]
[324793920,1714335079708,-1589.3,0.0001178,2]
[324793921,1714335079719,-500.0,0.0001178,2]
[324793922,1714335079729,-151.0,0.0001178,2]
[324793923,1714335079738,-520.83,0.0001178,2]
[324793924,1714335079747,-500.0,0.0001178,2]
[324793925,1714335079757,-684.215025,0.0001178,2]
[324793926,1714335079766,-500.0,0.0001178,2]
[324793927,1714335079776,-500.0,0.0001178,2]
[324793928,1714335079785,-500.0,0.0001178,2]
[324793929,1714335079795,-500.0,0.0001178,2]
[324793930,1714335079804,-500.0,0.0001178,2]
[324793931,1714335079814,-684.215025,0.0001178,2]
[324793932,1714335079823,-500.0,0.0001178,2]
[324793933,1714335079833,-500.0,0.0001178,2]
[324793934,1714335079842,-1830.16,0.0001178,2]
[324793935,1714335079851,-500.0,0.0001178,2]
[324793936,1714335079861,-500.0,0.0001178,2]
[324793937,1714335079870,-281.639809,0.0001178,2]
[324793938,1714335079880,-2000.0,0.0001178,2]
[324793939,1714335079889,-500.0,0.0001178,2]
[324793940,1714335079898,-500.0,0.0001178,2]
[324793941,1714335079907,-281.639809,0.0001178,2]
[324793942,1714335079917,-500.0,0.0001178,2]
[324793943,1714335079926,-447.05,0.0001178,2]
[324793944,1714335079935,-1311.58,0.0001178,2]